fUST/lending_fUST_20250208
["ID","MTS","AMOUNT","RATE_DAILY","PERIOD"]
[352108996,1738950652351,-500.0,0.00011506,2]
[352108997,1738950652360,-179.59849358,0.00011506,2]
[352108998,1738950652371,-504.73,0.00011506,2]
[352108999,1738950652381,-606.68,0.00011506,2]
[352109000,1738950652390,-500.0,0.00011506,2]
[352109001,1738950652401,-151.0,0.00011506,2]
[352109002,1738950652410,-151.0,0.00011506,2]
[352109003,1738950652420,-500.0,0.00011506,2]
[352109004,1738950652430,-500.0,0.00011506,2]
[352109005,1738950652441,-304.854293,0.00011506,2]
[352109006,1738950652451,-304.854293,0.00011506,2]
[352109007,1738950652460,-2397.999275,0.00011506,2]
[352109008,1738950652468,-151.0,0.00011506,2]
[352109009,1738950652478,-500.0,0.00011506,2]
[352109010,1738950652488,-2397.999275,0.00011506,2]
[352109011,1738950652498,-500.0,0.00011506,2]
[352109012,1738950652507,-2355.096345,0.00011506,2]
[352109013,1738950652517,-2355.096345,0.00011506,2]
[352109014,1738950652527,-500.0,0.00011506,2]
[352109015,1738950652537,-632.82,0.00011506,2]
[352109016,1738950652546,-616.51664178,0.00011506,2]
[352109017,1738950652555,-500.0,0.00011506,2]
[352109018,1738950652566,-500.0,0.00011506,2]
[352109019,1738950652576,-361.9,0.00011506,2]
[352109020,1738950652585,-500.0,0.00011506,2]
[352109021,1738950652595,-500.0,0.00011506,2]
[352109022,1738950652604,-444.08675127,0.00011506,2]
[352109023,1738950652615,-500.0,0.00011506,2]
[352109024,1738950652624,-500.0,0.00011506,2]
[352109025,1738950652634,-151.0,0.00011506,2]
[352109026,1738950652643,-351.26623,0.00011506,2]
[352109027,1738950652656,-500.0,0.00011506,2]
[352109028,1738950652665,-351.26623,0.00011506,2]
[352109029,1738950652675,-1436.5,0.00011506,2]
[352109030,1738950652683,-1000.82,0.00011506,2]
[352109031,1738950652694,-500.0,0.00011506,2]
[352109032,1738950652703,-500.0,0.00011506,2]
[352109033,1738950652713,-372.826846,0.00011506,2]
[352109034,1738950652722,-500.0,0.00011506,2]
[352109035,1738950652734,-372.826846,0.00011506,2]
[352109036,1738950652746,-500.0,0.00011506,2]
[352109037,1738950652755,-500.0,0.00011506,2]
[352109038,1738950652764,-500.0,0.00011506,2]
[352109039,1738950652773,-500.0,0.00011506,2]
[352109040,1738950652783,-1368.1,0.00011506,2]
[352109041,1738950652791,-617.14,0.00011506,2]
[352109042,1738950652801,-843.95,0.00011506,2]
[352109043,1738950652811,-500.0,0.00011506,2]
[352109044,1738950652820,-500.0,0.00011506,2]
[352109045,1738950652829,-500.0,0.00011506,2]
[352109046,1738950652838,-1454.058368,0.00011506,2]
[352109047,1738950652848,-1454.058368,0.00011506,2]
[352109048,1738950652858,-500.0,0.00011506,2]
[352109049,1738950652868,-608.77,0.00011506,2]
[352109050,1738950652877,-500.0,0.00011506,2]
[352109051,1738950652887,-500.0,0.00011506,2]
[352109052,1738950652896,-500.0,0.00011506,2]
[352109053,1738950652906,-230.458389,0.00011506,2]
[352109054,1738950652916,-1395.57,0.00011506,2]
[352109055,1738950652925,-230.458389,0.00011506,2]
[352109056,1738950652935,-2046.032792,0.00011506,2]
[352109057,1738950652944,-500.0,0.00011506,2]
[352109058,1738950652953,-2046.032792,0.00011506,2]
[352109059,1738950652963,-909.48,0.00011506,2]
[352109060,1738950652972,-500.0,0.00011506,2]
[352109061,1738950652982,-124.43947765,0.00011506,2]
[352109062,1738950819991,3000.0,0.00014,30]
[352109063,1738950820412,3000.0,0.0001401,30]
[352109064,1738950820873,3000.0,0.0001402,30]
[352109065,1738951349639,500.0,8.002e-05,2]
[352109092,1738951832297,-300.0,9.932e-05,2]
[352109094,1738951832307,-287.04081275,9.932e-05,2]
[352109096,1738951832317,-583.36731472,9.932e-05,2]
[352109098,1738951832327,-2186.91320591,9.933e-05,2]
[352109102,1738951832356,-2536.8816488,9.933e-05,2]
[352109104,1738951832368,-19204.44695266,9.933e-05,2]
[352109116,1738951838110,-971.75819263,9.933e-05,2]
[352109118,1738951838119,-155.0,0.00010557,2]
[352109120,1738951838129,-161.0,0.00010557,2]
[352109122,1738951838138,-256.03679004,0.00010857,2]
[352109125,1738951838148,-180.96845589,0.00010858,2]
[352109126,1738951838158,-3000.0,0.00010858,2]
[352109129,1738951838168,-420.0,0.00010925,2]
[352109131,1738951838178,-151.042,0.0001093,2]
[352109133,1738951838188,-550.05966086,0.00010957,2]
[352109135,1738951838197,-500.0,0.00010958,2]
[352109137,1738951838207,-371.11168764,0.00010958,2]
[352109139,1738951838218,-500.0,0.00010958,2]
[352109141,1738951838232,-500.0,0.00010958,2]
[352109143,1738951838242,-500.0,0.00010958,2]
[352109145,1738951838253,-500.0,0.00010958,2]
[352109147,1738951838262,-500.0,0.00010958,2]
[352109149,1738951838272,-500.0,0.00010958,2]
[352109151,1738951838282,-500.0,0.00010958,2]
[352109153,1738951838293,-500.0,0.00010958,2]
[352109155,1738951838304,-500.0,0.00010958,2]
[352109157,1738951838315,-500.0,0.00010958,2]
[352109160,1738951838326,-500.0,0.00010958,2]
[352109163,1738951838336,-500.0,0.00010958,2]
[352109165,1738951838346,-500.0,0.00010958,2]
[352109167,1738951838356,-500.0,0.00010958,2]
[352109169,1738951838365,-500.0,0.00010958,2]
[352109171,1738951838375,-500.0,0.00010958,2]
[352109173,1738951838386,-500.0,0.00010958,2]
[352109175,1738951838396,-546.88,0.00010958,2]
[352109177,1738951838406,-500.0,0.00010958,2]
[352109179,1738951838417,-500.0,0.00010958,2]
[352109181,1738951838427,-500.0,0.00010958,2]
[352109183,1738951838438,-500.0,0.00010958,2]
[352109185,1738951838449,-500.0,0.00010958,2]
[352109187,1738951838460,-500.0,0.00010958,2]
[352109189,1738951838471,-500.0,0.00010958,2]
[352109191,1738951838486,-500.0,0.00010958,2]
[352109193,1738951838496,-500.0,0.00010958,2]
[352109195,1738951838506,-500.0,0.00010958,2]
[352109197,1738951838516,-500.0,0.00010958,2]
[352109199,1738951838526,-500.0,0.00010958,2]
[352109201,1738951838537,-500.0,0.00010958,2]
[352109203,1738951838546,-500.0,0.00010958,2]
[352109205,1738951838556,-500.0,0.00010958,2]
[352109207,1738951838566,-500.0,0.00010958,2]
[352109209,1738951838576,-500.0,0.00010958,2]
[352109211,1738951838585,-440.49870488,0.00010958,2]
[352109213,1738951838595,-580.09,0.00010958,2]
[352109215,1738951838604,-500.0,0.00010958,2]
[352109217,1738951838614,-500.0,0.00010958,2]
[352109219,1738951838624,-282.09552643,0.00010958,2]
[352109221,1738951838634,-500.0,0.00010958,2]
[352109223,1738951838643,-500.0,0.00010958,2]
[352109225,1738951838652,-500.0,0.00010958,2]
[352109227,1738951838662,-500.0,0.00010958,2]
[352109229,1738951838671,-500.0,0.00010958,2]
[352109231,1738951838681,-500.0,0.00010958,2]
[352109233,1738951838690,-500.0,0.00010958,2]
[352109235,1738951838700,-500.0,0.00010958,2]
[352109237,1738951838709,-500.0,0.00010958,2]
[352109240,1738951838719,-511.90087153,0.00010958,2]
[352109242,1738951838730,-500.0,0.00010958,2]
[352109244,1738951838740,-511.71645157,0.00010958,2]
[352109245,1738951838749,-500.0,0.00010958,2]
[352109247,1738951838758,-500.0,0.00010958,2]
[352109250,1738951838769,-520.2001162,0.00010958,2]
[352109251,1738951838779,-500.0,0.00010958,2]
[352109253,1738951838788,-259.32308056,0.00010958,2]
[352109256,1738951838798,-500.0,0.00010958,2]
[352109258,1738951838807,-500.0,0.00010958,2]
[352109260,1738951838817,-500.0,0.00010958,2]
[352109262,1738951838826,-500.0,0.00010958,2]
[352109264,1738951838836,-500.0,0.00010958,2]
[352109265,1738951838845,-294.35794418,0.00010958,2]
[352109267,1738951838855,-917.41,0.00010958,2]
[352109269,1738951838864,-511.25565528,0.00010958,2]
[352109271,1738951838873,-473.43997243,0.00010958,2]
[352109273,1738951838883,-500.0,0.00010958,2]
[352109275,1738951838892,-500.0,0.00010958,2]
[352109278,1738951838902,-500.0,0.00010958,2]
[352109279,1738951838911,-500.43939866,0.00010958,2]
[352109282,1738951838921,-500.0,0.00010958,2]
[352109284,1738951838930,-500.0,0.00010958,2]
[352109286,1738951838940,-500.0,0.00010958,2]
[352109288,1738951838949,-500.0,0.00010958,2]
[352109290,1738951838959,-500.0,0.00010958,2]
[352109292,1738951838968,-500.0,0.00010958,2]
[352109294,1738951838978,-500.0,0.00010958,2]
[352109296,1738951838987,-773.62,0.00010958,2]
[352109298,1738951838997,-500.0,0.00010958,2]
[352109300,1738951839007,-502.97137501,0.00010958,2]
[352109301,1738951839015,-500.0,0.00010958,2]
[352109303,1738951839025,-500.0,0.00010958,2]
[352109305,1738951839037,-1254.09,0.00010958,2]
[352109307,1738951839047,-500.0,0.00010958,2]
[352109310,1738951839058,-534.17,0.00010958,2]
[352109312,1738951839067,-500.0,0.00010958,2]
[352109314,1738951839077,-500.0,0.00010958,2]
[352109315,1738951839086,-500.0,0.00010958,2]
[352109317,1738951839095,-500.0,0.00010958,2]
[352109320,1738951839105,-500.0,0.00010958,2]
[352109322,1738951839116,-500.0,0.00010958,2]
[352109324,1738951839126,-592.23,0.00010958,2]
[352109326,1738951839136,-204.93,0.00010958,2]
[352109327,1738951839147,-500.0,0.00010958,2]
[352109330,1738951839157,-1316.79,0.00010958,2]
[352109332,1738951839167,-500.0,0.00010958,2]
[352109334,1738951839176,-500.0,0.00010958,2]
[352109336,1738951839186,-500.0,0.00010958,2]
[352109338,1738951839196,-500.0,0.00010958,2]
[352109340,1738951839205,-1206.3,0.00010958,2]
[352109342,1738951839215,-500.0,0.00010958,2]
[352109344,1738951839225,-500.0,0.00010958,2]
[352109345,1738951839238,-500.0,0.00010958,2]
[352109348,1738951839247,-500.0,0.00010958,2]
[352109350,1738951839257,-500.0,0.00010958,2]
[352109352,1738951839266,-882.13,0.00010958,2]
[352109353,1738951839276,-500.0,0.00010958,2]
[352109356,1738951839286,-500.0,0.00010958,2]
[352109358,1738951839296,-500.0,0.00010958,2]
[352109360,1738951839306,-500.0,0.00010958,2]
[352109362,1738951839316,-195.57799124,0.00010958,2]
[352109364,1738951839325,-500.0,0.00010958,2]
[352109366,1738951839335,-526.37842923,0.00010958,2]
[352109368,1738951839344,-500.0,0.00010958,2]
[352109370,1738951839354,-500.0,0.00010958,2]
[352109372,1738951839364,-500.0,0.00010958,2]
[352109374,1738951839374,-565.71,0.00010958,2]
[352109375,1738951839385,-500.0,0.00010958,2]
[352109377,1738951839395,-500.0,0.00010958,2]
[352109380,1738951839405,-500.0,0.00010958,2]
[352109382,1738951839415,-500.0,0.00010958,2]
[352109384,1738951839426,-500.0,0.00010958,2]
[352109386,1738951839436,-500.0,0.00010958,2]
[352109388,1738951839445,-591.38542071,0.00010958,2]
[352109389,1738951839454,-500.0,0.00010958,2]
[352109392,1738951839464,-500.0,0.00010958,2]
[352109394,1738951839475,-500.0,0.00010958,2]
[352109396,1738951839490,-500.0,0.00010958,2]
[352109398,1738951839500,-502.88663421,0.00010958,2]
[352109400,1738951839510,-500.0,0.00010958,2]
[352109402,1738951839520,-500.0,0.00010958,2]
[352109404,1738951839530,-500.0,0.00010958,2]
[352109406,1738951839540,-500.0,0.00010958,2]
[352109408,1738951839550,-500.0,0.00010958,2]
[352109410,1738951839560,-500.0,0.00010958,2]
[352109412,1738951839569,-500.0,0.00010958,2]
[352109414,1738951839579,-500.0,0.00010958,2]
[352109416,1738951839590,-500.0,0.00010958,2]
[352109418,1738951839600,-500.0,0.00010958,2]
[352109420,1738951839610,-509.69894569,0.00010958,2]
[352109422,1738951839620,-500.0,0.00010958,2]
[352109424,1738951839629,-500.0,0.00010958,2]
[352109426,1738951839639,-500.0,0.00010958,2]
[352109428,1738951839649,-500.0,0.00010958,2]
[352109430,1738951839658,-500.0,0.00010958,2]
[352109432,1738951839668,-812.31,0.00010958,2]
[352109435,1738951839681,-500.0,0.00010958,2]
[352109437,1738951839690,-500.0,0.00010958,2]
[352109439,1738951839699,-583.15,0.00010958,2]
[352109441,1738951839709,-981.58,0.00010958,2]
[352109443,1738951839718,-500.00000001,0.00010958,2]
[352109445,1738951839730,-500.0,0.00010958,2]
[352109447,1738951839740,-500.0,0.00010958,2]
[352109449,1738951839749,-500.0,0.00010958,2]
[352109451,1738951839759,-500.0,0.00010958,2]
[352109453,1738951839769,-500.0,0.00010958,2]
[352109456,1738951839778,-500.0,0.00010958,2]
[352109458,1738951839787,-858.36,0.00010958,2]
[352109463,1738951839797,-500.0,0.00010958,2]
[352109466,1738951839807,-500.0,0.00010958,2]
[352109469,1738951839816,-439.20689395,0.00010958,2]
[352109471,1738951839825,-500.0,0.00010958,2]
[352109472,1738951839835,-500.0,0.00010958,2]
[352109474,1738951839844,-500.0,0.00010958,2]
[352109476,1738951839854,-178.00689569,0.00010958,2]
[352109479,1738951839863,-500.0,0.00010958,2]
[352109481,1738951839873,-500.0,0.00010958,2]
[352109483,1738951839884,-500.0,0.00010958,2]
[352109485,1738951839893,-500.0,0.00010958,2]
[352109487,1738951839903,-500.0,0.00010958,2]
[352109489,1738951839913,-500.0,0.00010958,2]
[352109491,1738951839925,-500.0,0.00010958,2]
[352109492,1738951839935,-500.0,0.00010958,2]
[352109494,1738951839945,-500.0,0.00010958,2]
[352109495,1738951839956,-500.0,0.00010958,2]
[352109496,1738951839965,-500.0,0.00010958,2]
[352109497,1738951839975,-500.0,0.00010958,2]
[352109498,1738951839987,-500.0,0.00010958,2]
[352109499,1738951839996,-500.0,0.00010958,2]
[352109500,1738951840005,-500.0,0.00010958,2]
[352109501,1738951840015,-500.0,0.00010958,2]
[352109502,1738951840024,-638.72,0.00010958,2]
[352109503,1738951840037,-500.0,0.00010958,2]
[352109504,1738951840047,-501.89342174,0.00010958,2]
[352109505,1738951840056,-500.0,0.00010958,2]
[352109506,1738951840065,-788.54,0.00010958,2]
[352109507,1738951840075,-500.0,0.00010958,2]
[352109508,1738951840084,-1348.78,0.00010958,2]
[352109509,1738951840094,-18928.19,0.00010958,2]
[352109511,1738951840103,-500.0,0.00010958,2]
[352109513,1738951840113,-500.0,0.00010958,2]
[352109515,1738951840124,-500.0,0.00010958,2]
[352109517,1738951840134,-500.0,0.00010958,2]
[352109519,1738951840144,-500.0,0.00010958,2]
[352109522,1738951840154,-500.0,0.00010958,2]
[352109524,1738951840163,-500.0,0.00010958,2]
[352109526,1738951840173,-500.0,0.00010958,2]
[352109528,1738951840183,-500.0,0.00010958,2]
[352109530,1738951840192,-500.0,0.00010958,2]
[352109532,1738951840202,-500.0,0.00010958,2]
[352109534,1738951840214,-500.0,0.00010958,2]
[352109536,1738951840223,-500.0,0.00010958,2]
[352109538,1738951840234,-506.77494165,0.00010958,2]
[352109540,1738951840243,-500.0,0.00010958,2]
[352109542,1738951840254,-500.0,0.00010958,2]
[352109544,1738951840264,-500.0,0.00010958,2]
[352109546,1738951840274,-1612.79,0.00010958,2]
[352109548,1738951840283,-500.0,0.00010958,2]
[352109550,1738951840293,-500.0,0.00010958,2]
[352109552,1738951840303,-500.0,0.00010958,2]
[352109554,1738951840313,-937.89,0.00010958,2]
[352109556,1738951840322,-500.0,0.00010958,2]
[352109558,1738951840332,-779.21,0.00010958,2]
[352109560,1738951840342,-955.08,0.00010958,2]
[352109562,1738951840351,-500.0,0.00010958,2]
[352109564,1738951840361,-652.09,0.00010958,2]
[352109567,1738951840370,-500.0,0.00010958,2]
[352109568,1738951840380,-500.0,0.00010958,2]
[352109571,1738951840389,-500.0,0.00010958,2]
[352109573,1738951840399,-500.0,0.00010958,2]
[352109575,1738951840408,-500.0,0.00010958,2]
[352109577,1738951840418,-958.01,0.00010958,2]
[352109579,1738951840427,-910.53,0.00010958,2]
[352109581,1738951840437,-500.0,0.00010958,2]
[352109583,1738951840446,-500.0,0.00010958,2]
[352109585,1738951840455,-500.0,0.00010958,2]
[352109587,1738951840465,-819.51,0.00010958,2]
[352109589,1738951840474,-500.0,0.00010958,2]
[352109591,1738951840485,-500.0,0.00010958,2]
[352109593,1738951840494,-3840.07,0.00010958,2]
[352109595,1738951840503,-500.0,0.00010958,2]
[352109597,1738951840513,-500.0,0.00010958,2]
[352109599,1738951840522,-500.0,0.00010958,2]
[352109601,1738951840532,-766.23,0.00010958,2]
[352109603,1738951840541,-500.0,0.00010958,2]
[352109605,1738951840550,-500.0,0.00010958,2]
[352109607,1738951840560,-500.0,0.00010958,2]
[352109609,1738951840569,-500.0,0.00010958,2]
[352109611,1738951840578,-500.0,0.00010958,2]
[352109613,1738951840587,-839.8,0.00010958,2]
[352109615,1738951840597,-500.0,0.00010958,2]
[352109617,1738951840606,-3029.27,0.00010958,2]
[352109619,1738951840615,-500.0,0.00010958,2]
[352109621,1738951840624,-1555.5,0.00010958,2]
[352109623,1738951840634,-423.0621364,0.00010958,2]
[352109625,1738951840643,-500.0,0.00010958,2]
[352109627,1738951840652,-500.0,0.00010958,2]
[352109629,1738951840662,-523.37030893,0.00010958,2]
[352109631,1738951840672,-500.0,0.00010958,2]
[352109633,1738951840681,-507.7,0.00010958,2]
[352109635,1738951840690,-609.01523026,0.00010958,2]
[352109637,1738951840699,-500.0,0.00010958,2]
[352109639,1738951840709,-646.63,0.00010958,2]
[352109641,1738951840718,-500.0,0.00010958,2]
[352109643,1738951840728,-500.0,0.00010958,2]
[352109645,1738951840737,-500.0,0.00010958,2]
[352109647,1738951840747,-500.0,0.00010958,2]
[352109649,1738951840756,-500.0,0.00010958,2]
[352109651,1738951840766,-500.0,0.00010958,2]
[352109653,1738951840776,-500.0,0.00010958,2]
[352109655,1738951840786,-500.0,0.00010958,2]
[352109657,1738951840796,-500.0,0.00010958,2]
[352109659,1738951840805,-832.81,0.00010958,2]
[352109661,1738951840815,-6257.88,0.00010958,2]
[352109680,1738951840979,-500.0,0.00010958,2]
[352109682,1738951840993,-734.68,0.00010958,2]
[352109684,1738951841003,-502.89173317,0.00010958,2]
[352109686,1738951841013,-10397.88,0.00010958,2]
[352109688,1738951841023,-500.0,0.00010958,2]
[352109690,1738951841037,-500.0,0.00010958,2]
[352109692,1738951841046,-654.99,0.00010958,2]
[352109694,1738951841055,-500.0,0.00010958,2]
[352109696,1738951841064,-690.07,0.00010958,2]
[352109698,1738951841074,-500.0,0.00010958,2]
[352109700,1738951841083,-525.76,0.00010958,2]
[352109702,1738951841092,-500.0,0.00010958,2]
[352109704,1738951841102,-500.0,0.00010958,2]
[352109706,1738951841112,-500.0,0.00010958,2]
[352109708,1738951841122,-500.0,0.00010958,2]
[352109710,1738951841132,-500.0,0.00010958,2]
[352109712,1738951841141,-500.0,0.00010958,2]
[352109714,1738951841150,-500.0,0.00010958,2]
[352109716,1738951841159,-500.0,0.00010958,2]
[352109718,1738951841169,-500.0,0.00010958,2]
[352109720,1738951841178,-500.0,0.00010958,2]
[352109722,1738951841187,-500.0,0.00010958,2]
[352109724,1738951841196,-500.0,0.00010958,2]
[352109726,1738951841206,-500.0,0.00010958,2]
[352109728,1738951841216,-286.15300448,0.00010958,2]
[352109730,1738951841225,-1266.87,0.00010958,2]
[352109732,1738951841236,-2200.03,0.00010958,2]
[352109734,1738951841245,-4185.0,0.00010958,2]
[352109736,1738951841255,-334.6,0.00010958,2]
[352109738,1738951841264,-4706.93,0.00010958,2]
[352109740,1738951841275,-837.48,0.00010958,2]
[352109742,1738951841285,-500.0,0.00010958,2]
[352109744,1738951841296,-2108.12,0.00010958,2]
[352109746,1738951841307,-910.19,0.00010958,2]
[352109748,1738951841317,-332.65548592,0.00010958,2]
[352109750,1738951841327,-500.0,0.00010958,2]
[352109752,1738951841336,-622.45327861,0.00010958,2]
[352109754,1738951841346,-500.0,0.00010958,2]
[352109756,1738951841356,-4782.15,0.00010958,2]
[352109758,1738951841365,-500.0,0.00010958,2]
[352109760,1738951841376,-500.0,0.00010958,2]
[352109762,1738951841386,-500.0,0.00010958,2]
[352109764,1738951841396,-500.0,0.00010958,2]
[352109766,1738951841406,-500.0,0.00010958,2]
[352109768,1738951841415,-500.0,0.00010958,2]
[352109770,1738951841424,-500.0,0.00010958,2]
[352109772,1738951841434,-500.0,0.00010958,2]
[352109774,1738951841444,-522.44,0.00010958,2]
[352109777,1738951841454,-500.0,0.00010958,2]
[352109779,1738951841463,-500.0,0.00010958,2]
[352109780,1738951841473,-14855.49,0.00010958,2]
[352109783,1738951841485,-427.8931166,0.00010958,2]
[352109785,1738951841495,-1015.7,0.00010958,2]
[352109787,1738951841504,-500.0,0.00010958,2]
[352109788,1738951841514,-500.0,0.00010958,2]
[352109791,1738951841524,-500.0,0.00010958,2]
[352109793,1738951841533,-500.0,0.00010958,2]
[352109795,1738951841542,-500.0,0.00010958,2]
[352109797,1738951841551,-500.0,0.00010958,2]
[352109798,1738951841561,-1899.91,0.00010958,2]
[352109801,1738951841570,-500.0,0.00010958,2]
[352109803,1738951841580,-500.0,0.00010958,2]
[352109805,1738951841590,-1080.87,0.00010958,2]
[352109807,1738951841599,-500.0,0.00010958,2]
[352109808,1738951841608,-42882.94,0.00010958,2]
[352109811,1738951841619,-500.0,0.00010958,2]
[352109813,1738951841628,-2217.79,0.00010958,2]
[352109815,1738951841637,-501.39625508,0.00010958,2]
[352109817,1738951841646,-588.55,0.00010958,2]
[352109819,1738951841655,-589.42942773,0.00010958,2]
[352109821,1738951841664,-500.0,0.00010958,2]
[352109823,1738951841673,-500.0,0.00010958,2]
[352109825,1738951841683,-500.0,0.00010958,2]
[352109826,1738951841692,-1184.64,0.00010958,2]
[352109828,1738951841702,-500.0,0.00010958,2]
[352109831,1738951841711,-5616.92,0.00010958,2]
[352109832,1738951841720,-500.0,0.00010958,2]
[352109835,1738951841731,-500.0,0.00010958,2]
[352109837,1738951841740,-694.18,0.00010958,2]
[352109838,1738951841749,-500.0,0.00010958,2]
[352109840,1738951841758,-2028.94,0.00010958,2]
[352109842,1738951841767,-500.0,0.00010958,2]
[352109845,1738951841776,-500.0,0.00010958,2]
[352109847,1738951841786,-500.0,0.00010958,2]
[352109849,1738951841795,-2546.25,0.00010958,2]
[352109851,1738951841804,-693.43,0.00010958,2]
[352109852,1738951841813,-7043.68,0.00010958,2]
[352109855,1738951841822,-500.0,0.00010958,2]
[352109857,1738951841831,-1608.85,0.00010958,2]
[352109859,1738951841840,-1043.44,0.00010958,2]
[352109860,1738951841849,-5757.71,0.00010958,2]
[352109862,1738951841858,-500.0,0.00010958,2]
[352109865,1738951841868,-2238.72,0.00010958,2]
[352109867,1738951841878,-500.0,0.00010958,2]
[352109869,1738951841888,-500.0,0.00010958,2]
[352109871,1738951841897,-500.0,0.00010958,2]
[352109873,1738951841906,-500.0,0.00010958,2]
[352109875,1738951841915,-500.0,0.00010958,2]
[352109877,1738951841925,-500.0,0.00010958,2]
[352109879,1738951841934,-500.0,0.00010958,2]
[352109881,1738951841943,-500.0,0.00010958,2]
[352109883,1738951841952,-500.0,0.00010958,2]
[352109885,1738951841961,-500.0,0.00010958,2]
[352109887,1738951841971,-961.33,0.00010958,2]
[352109889,1738951841981,-2939.94,0.00010958,2]
[352109891,1738951841990,-500.0,0.00010958,2]
[352109893,1738951841999,-572.15,0.00010958,2]
[352109895,1738951842008,-500.0,0.00010958,2]
[352109897,1738951842017,-500.0,0.00010958,2]
[352109899,1738951842027,-500.0,0.00010958,2]
[352109901,1738951842038,-500.0,0.00010958,2]
[352109903,1738951842048,-500.0,0.00010958,2]
[352109905,1738951842057,-500.0,0.00010958,2]
[352109907,1738951842067,-500.0,0.00010958,2]
[352109909,1738951842077,-500.0,0.00010958,2]
[352109911,1738951842087,-500.0,0.00010958,2]
[352109913,1738951842096,-253.21865223,0.00010958,2]
[352109915,1738951842105,-2793.36,0.00010958,2]
[352109917,1738951842115,-500.0,0.00010958,2]
[352109919,1738951842124,-10778.9,0.00010958,2]
[352109921,1738951842133,-10778.9,0.00010958,2]
[352109923,1738951842142,-10778.9,0.00010958,2]
[352109925,1738951842152,-10778.9,0.00010958,2]
[352109927,1738951842161,-10778.9,0.00010958,2]
[352109929,1738951842170,-10778.9,0.00010958,2]
[352109931,1738951842180,-10778.9,0.00010958,2]
[352109933,1738951842189,-754.7,0.00010958,2]
[352109935,1738951842198,-500.0,0.00010958,2]
[352109937,1738951842208,-10778.9,0.00010958,2]
[352109939,1738951842217,-10778.9,0.00010958,2]
[352109941,1738951842226,-10778.9,0.00010958,2]
[352109943,1738951842237,-10778.9,0.00010958,2]
[352109945,1738951842246,-10778.9,0.00010958,2]
[352109947,1738951842255,-10778.9,0.00010958,2]
[352109949,1738951842264,-10778.9,0.00010958,2]
[352109951,1738951842274,-500.0,0.00010958,2]
[352109953,1738951842283,-14498.7,0.00010958,2]
[352109955,1738951842292,-500.0,0.00010958,2]
[352109957,1738951842301,-1614.6,0.00010958,2]
[352109959,1738951842310,-500.0,0.00010958,2]
[352109961,1738951842319,-1570.52,0.00010958,2]
[352109963,1738951842328,-651.77,0.00010958,2]
[352109965,1738951842338,-500.0,0.00010958,2]
[352109967,1738951842348,-500.0,0.00010958,2]
[352109969,1738951842358,-500.0,0.00010958,2]
[352109971,1738951842367,-2160.97,0.00010958,2]
[352109973,1738951842376,-500.0,0.00010958,2]
[352109975,1738951842386,-1465.16,0.00010959,2]
[352109977,1738951842395,-1220.97,0.00010959,2]